[Event "*** Titled Tuesday Blitz"]
[Site "Chess.com"]
[Date "2021.03.16"]
[Round "3"]
[White "politeplayer"]
[Black "eCztery"]
[Result "0-1"]
[WhiteElo "2223"]
[BlackElo "2404"]
[TimeControl "180+1"]
[EndTime "10:28:35 PDT"]
[Termination "eCztery won by checkmate"]

1. e4 {[%clk 0:03:00.9]} 1... c5 {[%clk 0:02:32.7]} 2. Nf3 {[%clk 0:02:55.2]}
2... g6 {[%clk 0:02:29.1]} 3. d4 {[%clk 0:02:54.3]} 3... cxd4 {[%clk 0:02:24.7]}
4. Nxd4 {[%clk 0:02:53.9]} 4... Nf6 {[%clk 0:02:22.3]} 5. Nc3 {[%clk 0:02:48.5]}
5... d6 {[%clk 0:02:22]} 6. Be3 {[%clk 0:02:43.6]} 6... Bg7 {[%clk 0:02:21.7]}
7. f3 {[%clk 0:02:44]} 7... O-O {[%clk 0:02:16.7]} 8. Qd2 {[%clk 0:02:43.8]}
8... Nc6 {[%clk 0:02:14.5]} 9. Bc4 {[%clk 0:02:42.9]} 9... Qa5 {[%clk 0:02:12]}
10. O-O {[%clk 0:02:35.8]} 10... Nxd4 {[%clk 0:01:59.5]} 11. Bxd4 {[%clk
0:02:34.5]} 11... Be6 {[%clk 0:01:56.8]} 12. Bxe6 {[%clk 0:02:31.4]} 12... fxe6
{[%clk 0:01:57.7]} 13. Rad1 {[%clk 0:02:20.8]} 13... Rac8 {[%clk 0:01:56]} 14.
Kh1 {[%clk 0:02:14]} 14... Kh8 {[%clk 0:01:48.4]} 15. a3 {[%clk 0:02:09.4]}
15... a6 {[%clk 0:01:44.7]} 16. Rfe1 {[%clk 0:02:03.3]} 16... e5 {[%clk
0:01:40.6]} 17. Be3 {[%clk 0:01:57.8]} 17... Rfd8 {[%clk 0:01:18.3]} 18. Bh6
{[%clk 0:01:55.3]} 18... e6 {[%clk 0:01:17.6]} 19. Bxg7+ {[%clk 0:01:53.1]}
19... Kxg7 {[%clk 0:01:18.5]} 20. f4 {[%clk 0:01:49.7]} 20... exf4 {[%clk
0:01:10.4]} 21. Qxf4 {[%clk 0:01:46.2]} 21... Qe5 {[%clk 0:01:07.4]} 22. Qxe5
{[%clk 0:01:38.3]} 22... dxe5 {[%clk 0:01:08.3]} 23. Kg1 {[%clk 0:01:29.3]}
23... Rd4 {[%clk 0:00:59.5]} 24. Rd3 {[%clk 0:01:16]} 24... b5 {[%clk
0:00:34.2]} 25. Rf3 {[%clk 0:01:14]} 25... a5 {[%clk 0:00:29.1]} 26. Ref1 {[%clk
0:01:12.1]} 26... Nxe4 {[%clk 0:00:28.9]} 27. Rf7+ {[%clk 0:01:11.5]} 27... Kh6
{[%clk 0:00:28.8]} 28. Nxb5 {[%clk 0:01:10.1]} 28... Rxc2 {[%clk 0:00:22]} 29.
Nxd4 {[%clk 0:01:06.3]} 29... exd4 {[%clk 0:00:22.9]} 30. R7f4 {[%clk
0:01:06.6]} 30... Nd2 {[%clk 0:00:14.5]} 31. Rd1 {[%clk 0:01:01.1]} 31... Nc4
{[%clk 0:00:07]} 32. b4 {[%clk 0:00:46.3]} 32... e5 {[%clk 0:00:06.2]} 33. Rh4+
{[%clk 0:00:45]} 33... Kg5 {[%clk 0:00:05.8]} 34. Rxh7 {[%clk 0:00:43.7]} 34...
axb4 {[%clk 0:00:06.4]} 35. axb4 {[%clk 0:00:43]} 35... Ne3 {[%clk 0:00:07.1]}
36. Rb1 {[%clk 0:00:34.4]} 36... Rxg2+ {[%clk 0:00:08]} 37. Kh1 {[%clk
0:00:34.5]} 37... Rc2 {[%clk 0:00:08.1]} 38. Rh3 {[%clk 0:00:29.9]} 38... Kf4
{[%clk 0:00:07.6]} 39. b5 {[%clk 0:00:27.3]} 39... d3 {[%clk 0:00:07]} 40. Rb4+
{[%clk 0:00:22.8]} 40... e4 {[%clk 0:00:07.5]} 41. Rb1 {[%clk 0:00:19.7]} 41...
d2 {[%clk 0:00:07.6]} 42. Rh4+ {[%clk 0:00:17.2]} 42... Kg5 {[%clk 0:00:06.6]}
43. Rxe4 {[%clk 0:00:11]} 43... Rc1+ {[%clk 0:00:06.6]} 44. Rxc1 {[%clk
0:00:08.4]} 44... dxc1=Q# {[%clk 0:00:07.5]} 0-1

[Event "*** Titled Tuesday Blitz"]
[Site "Chess.com"]
[Date "2021.03.16"]
[Round "3"]
[White "Frolyanov_D"]
[Black "Fandorine"]
[Result "1-0"]
[WhiteElo "2692"]
[BlackElo "2872"]
[TimeControl "180+1"]
[EndTime "10:28:39 PDT"]
[Termination "Frolyanov_D won by resignation"]

1. e4 {[%clk 0:03:00.9]} 1... c5 {[%clk 0:02:58.7]} 2. Nf3 {[%clk 0:02:59]} 2...
e6 {[%clk 0:02:57.7]} 3. d4 {[%clk 0:02:58.4]} 3... cxd4 {[%clk 0:02:58.3]} 4.
Nxd4 {[%clk 0:02:59.3]} 4... Nc6 {[%clk 0:02:58.9]} 5. Nc3 {[%clk 0:02:58]} 5...
Qc7 {[%clk 0:02:59.2]} 6. g3 {[%clk 0:02:57.6]} 6... a6 {[%clk 0:02:59]} 7. Bg2
{[%clk 0:02:57]} 7... Nf6 {[%clk 0:02:59.3]} 8. O-O {[%clk 0:02:55.3]} 8... Nxd4
{[%clk 0:02:59.6]} 9. Qxd4 {[%clk 0:02:54.4]} 9... Bc5 {[%clk 0:02:59.9]} 10.
Bf4 {[%clk 0:02:52.7]} 10... d6 {[%clk 0:03:00]} 11. Qd3 {[%clk 0:02:51.7]}
11... Ng4 {[%clk 0:02:37.1]} 12. Rad1 {[%clk 0:02:48.1]} 12... Ne5 {[%clk
0:02:37.1]} 13. Qe2 {[%clk 0:02:39.3]} 13... b5 {[%clk 0:02:34.8]} 14. a3 {[%clk
0:02:34.7]} 14... Bb7 {[%clk 0:02:31.1]} 15. Na2 {[%clk 0:02:11.9]} 15... O-O
{[%clk 0:02:23.3]} 16. Nb4 {[%clk 0:02:10.7]} 16... Ng6 {[%clk 0:02:13.5]} 17.
Bc1 {[%clk 0:02:07.1]} 17... Rac8 {[%clk 0:02:11.6]} 18. h4 {[%clk 0:02:05.7]}
18... h6 {[%clk 0:01:48.6]} 19. c3 {[%clk 0:01:58.4]} 19... Qe7 {[%clk
0:01:29.9]} 20. Nd3 {[%clk 0:01:57.1]} 20... Rfd8 {[%clk 0:01:18]} 21. Qg4
{[%clk 0:01:54.3]} 21... Qf6 {[%clk 0:01:05.9]} 22. Bxh6 {[%clk 0:01:34.2]}
22... gxh6 {[%clk 0:01:04.8]} 23. e5 {[%clk 0:01:34.4]} 23... dxe5 {[%clk
0:00:33]} 24. Bxb7 {[%clk 0:01:33.7]} 24... h5 {[%clk 0:00:20.6]} 25. Qxh5
{[%clk 0:01:32.9]} 25... Rc7 {[%clk 0:00:16.3]} 26. Nxc5 {[%clk 0:01:32.3]}
26... Rxd1 {[%clk 0:00:15.1]} 27. Rxd1 {[%clk 0:01:29.7]} 27... Rxc5 {[%clk
0:00:15.6]} 28. Qg5 {[%clk 0:01:29.3]} 28... Qxg5 {[%clk 0:00:14.4]} 29. hxg5
{[%clk 0:01:30.2]} 29... a5 {[%clk 0:00:15]} 30. Kg2 {[%clk 0:01:24]} 30... Kf8
{[%clk 0:00:15.5]} 31. Be4 {[%clk 0:01:23.1]} 31... b4 {[%clk 0:00:11.9]} 32.
axb4 {[%clk 0:01:17.5]} 32... axb4 {[%clk 0:00:12.8]} 33. cxb4 {[%clk
0:01:17.2]} 33... Rb5 {[%clk 0:00:13.2]} 34. Bxg6 {[%clk 0:01:15.3]} 34... fxg6
{[%clk 0:00:14.1]} 35. Re1 {[%clk 0:01:14.9]} 35... Rxb4 {[%clk 0:00:11.8]} 36.
Rxe5 {[%clk 0:01:14.2]} 36... Kf7 {[%clk 0:00:12.3]} 37. Re2 {[%clk 0:01:13.7]}
37... Ke7 {[%clk 0:00:12.9]} 38. Kf1 {[%clk 0:01:13.1]} 38... Kd6 {[%clk
0:00:13.8]} 39. Ke1 {[%clk 0:01:13.2]} 39... e5 {[%clk 0:00:14.4]} 40. Kd1
{[%clk 0:01:12.4]} 40... Kd5 {[%clk 0:00:14.3]} 41. Kc2 {[%clk 0:01:11.4]} 41...
e4 {[%clk 0:00:14.8]} 42. Rd2+ {[%clk 0:01:04.3]} 42... Ke5 {[%clk 0:00:12.7]}
43. Kc3 {[%clk 0:01:01.6]} 43... Rb8 {[%clk 0:00:06.9]} 44. b4 {[%clk 0:01:02]}
44... Kf5 {[%clk 0:00:07.3]} 45. Rd5+ {[%clk 0:00:56.8]} 45... Kg4 {[%clk
0:00:06.6]} 46. Rd6 {[%clk 0:00:29.9]} 46... Kf3 {[%clk 0:00:04.6]} 47. Rf6+
{[%clk 0:00:27.9]} 47... Ke2 {[%clk 0:00:04.8]} 48. Kc4 {[%clk 0:00:23.9]} 48...
Re8 {[%clk 0:00:02.4]} 49. b5 {[%clk 0:00:22.6]} 49... Rc8+ {[%clk 0:00:03]} 50.
Kd4 {[%clk 0:00:21.9]} 50... e3 {[%clk 0:00:03.6]} 51. fxe3 {[%clk 0:00:21]}
51... Rd8+ {[%clk 0:00:04.3]} 52. Kc5 {[%clk 0:00:20.9]} 52... Kxe3 {[%clk
0:00:05.2]} 1-0

[Event "*** Titled Tuesday Blitz"]
[Site "Chess.com"]
[Date "2021.03.16"]
[Round "3"]
[White "zajka-molotok"]
[Black "ariosp"]
[Result "1-0"]
[WhiteElo "2520"]
[BlackElo "2203"]
[TimeControl "180+1"]
[EndTime "10:28:40 PDT"]
[Termination "zajka-molotok won on time"]

1. b4 {[%clk 0:03:00.9]} 1... e5 {[%clk 0:02:59]} 2. Bb2 {[%clk 0:02:59]} 2...
f6 {[%clk 0:02:58.6]} 3. b5 {[%clk 0:02:57.8]} 3... d5 {[%clk 0:02:58]} 4. e3
{[%clk 0:02:56.9]} 4... Be6 {[%clk 0:02:58]} 5. Nf3 {[%clk 0:02:56.2]} 5... Qd7
{[%clk 0:02:55.5]} 6. d4 {[%clk 0:02:53.3]} 6... e4 {[%clk 0:02:52.7]} 7. Nfd2
{[%clk 0:02:53.3]} 7... c6 {[%clk 0:02:48.2]} 8. a4 {[%clk 0:02:50.3]} 8... Bd6
{[%clk 0:02:46.6]} 9. c4 {[%clk 0:02:46.8]} 9... f5 {[%clk 0:02:38.1]} 10. Nc3
{[%clk 0:02:45.5]} 10... Nf6 {[%clk 0:02:36.9]} 11. Qb3 {[%clk 0:02:40.4]} 11...
f4 {[%clk 0:02:31.2]} 12. Ba3 {[%clk 0:02:28.9]} 12... fxe3 {[%clk 0:02:29.8]}
13. fxe3 {[%clk 0:02:27.6]} 13... O-O {[%clk 0:02:28.1]} 14. Bxd6 {[%clk
0:02:25.3]} 14... Qxd6 {[%clk 0:02:27.7]} 15. Qa3 {[%clk 0:02:17.4]} 15... Qxa3
{[%clk 0:02:25.6]} 16. Rxa3 {[%clk 0:02:18.3]} 16... Ng4 {[%clk 0:02:25.1]} 17.
Nd1 {[%clk 0:02:07.7]} 17... Nd7 {[%clk 0:02:18.1]} 18. Be2 {[%clk 0:01:56.7]}
18... Rf7 {[%clk 0:02:12.9]} 19. h3 {[%clk 0:01:54.9]} 19... Nh6 {[%clk
0:02:07]} 20. g4 {[%clk 0:01:48.7]} 20... g5 {[%clk 0:02:00.6]} 21. Rc3 {[%clk
0:01:35.9]} 21... Nb6 {[%clk 0:01:41.4]} 22. cxd5 {[%clk 0:01:23.9]} 22... Bxd5
{[%clk 0:01:30.2]} 23. a5 {[%clk 0:01:22]} 23... Nc8 {[%clk 0:01:18.4]} 24. bxc6
{[%clk 0:01:15]} 24... bxc6 {[%clk 0:01:16.2]} 25. Rc5 {[%clk 0:01:09.7]} 25...
Nd6 {[%clk 0:01:12.8]} 26. Nc3 {[%clk 0:01:07.9]} 26... Rb8 {[%clk 0:00:51.2]}
27. Nxd5 {[%clk 0:01:05.4]} 27... cxd5 {[%clk 0:00:50.5]} 28. Rxd5 {[%clk
0:01:05.1]} 28... Rf6 {[%clk 0:00:42.6]} 29. Rxg5+ {[%clk 0:01:04.2]} 29... Kh8
{[%clk 0:00:39.2]} 30. Rf1 {[%clk 0:01:02.3]} 30... Rxf1+ {[%clk 0:00:36.1]} 31.
Bxf1 {[%clk 0:01:03.2]} 31... Rb2 {[%clk 0:00:32.1]} 32. Rd5 {[%clk 0:00:53.7]}
32... Nhf7 {[%clk 0:00:31.1]} 33. Bg2 {[%clk 0:00:49.2]} 33... Ra2 {[%clk
0:00:24.2]} 34. Nxe4 {[%clk 0:00:48.6]} 34... Nc4 {[%clk 0:00:21.3]} 35. Rd7
{[%clk 0:00:14.7]} 35... Nxe3 {[%clk 0:00:17.8]} 36. Rxf7 {[%clk 0:00:14]} 36...
Nxg2+ {[%clk 0:00:16.4]} 37. Kd1 {[%clk 0:00:13.4]} 37... Ne3+ {[%clk
0:00:15.9]} 38. Kc1 {[%clk 0:00:13.5]} 38... Kg8 {[%clk 0:00:13.4]} 39. Rxa7
{[%clk 0:00:12.6]} 39... Nc4 {[%clk 0:00:12.1]} 40. Nf6+ {[%clk 0:00:11.9]}
40... Kf8 {[%clk 0:00:11.5]} 41. Nxh7+ {[%clk 0:00:12.4]} 41... Ke8 {[%clk
0:00:11.8]} 42. Nf6+ {[%clk 0:00:12.6]} 42... Kd8 {[%clk 0:00:11.8]} 43. a6
{[%clk 0:00:12.9]} 43... Rh2 {[%clk 0:00:04.4]} 44. Rh7 {[%clk 0:00:11.1]} 44...
Ra2 {[%clk 0:00:01.5]} 45. a7 {[%clk 0:00:11.1]} 1-0

[Event "*** Titled Tuesday Blitz"]
[Site "Chess.com"]
[Date "2021.03.16"]
[Round "3"]
[White "Susal_De_Silva"]
[Black "Bacyanide"]
[Result "1-0"]
[WhiteElo "2631"]
[BlackElo "2411"]
[TimeControl "180+1"]
[EndTime "10:28:43 PDT"]
[Termination "Susal_De_Silva won by resignation"]

1. e4 {[%clk 0:03:00.9]} 1... c6 {[%clk 0:02:59.6]} 2. d4 {[%clk 0:03:00.8]}
2... d5 {[%clk 0:03:00.5]} 3. Nc3 {[%clk 0:02:59.1]} 3... dxe4 {[%clk
0:03:01.1]} 4. Nxe4 {[%clk 0:03:00]} 4... Nf6 {[%clk 0:03:01.5]} 5. Nxf6+ {[%clk
0:03:00.4]} 5... exf6 {[%clk 0:03:02.4]} 6. c3 {[%clk 0:03:00.9]} 6... Bd6
{[%clk 0:03:02.8]} 7. Bd3 {[%clk 0:03:01.5]} 7... O-O {[%clk 0:03:03.6]} 8. Ne2
{[%clk 0:03:02.1]} 8... Re8 {[%clk 0:03:03.9]} 9. Qc2 {[%clk 0:03:03]} 9... h5
{[%clk 0:03:01.6]} 10. O-O {[%clk 0:03:03]} 10... h4 {[%clk 0:02:59.2]} 11. h3
{[%clk 0:03:03.5]} 11... Nd7 {[%clk 0:02:59.4]} 12. Bd2 {[%clk 0:03:04]} 12...
Nf8 {[%clk 0:02:59.9]} 13. Rae1 {[%clk 0:03:04.7]} 13... Be6 {[%clk 0:02:54]}
14. c4 {[%clk 0:03:04.4]} 14... Rc8 {[%clk 0:02:49.7]} 15. f4 {[%clk 0:03:03.2]}
15... Bb8 {[%clk 0:02:47.5]} 16. b3 {[%clk 0:02:54.3]} 16... Qd6 {[%clk
0:02:45]} 17. c5 {[%clk 0:02:26.8]} 17... Qc7 {[%clk 0:02:42.2]} 18. Nc3 {[%clk
0:02:26.8]} 18... Rcd8 {[%clk 0:02:26.6]} 19. Be3 {[%clk 0:02:24.8]} 19... Bc8
{[%clk 0:02:16.6]} 20. Qf2 {[%clk 0:02:21.6]} 20... b6 {[%clk 0:01:57.3]} 21. b4
{[%clk 0:02:19.1]} 21... a5 {[%clk 0:01:56]} 22. a3 {[%clk 0:02:17.9]} 22...
axb4 {[%clk 0:01:54.9]} 23. axb4 {[%clk 0:02:18.8]} 23... bxc5 {[%clk
0:01:55.3]} 24. bxc5 {[%clk 0:02:19.7]} 24... Qa5 {[%clk 0:01:43.8]} 25. Ne4
{[%clk 0:02:17.6]} 25... f5 {[%clk 0:01:40.5]} 26. Ng5 {[%clk 0:02:06]} 26...
Qc3 {[%clk 0:01:38.8]} 27. Bb1 {[%clk 0:01:44]} 27... Ba6 {[%clk 0:01:32.5]} 28.
Ba2 {[%clk 0:01:39]} 28... Rd7 {[%clk 0:01:23.2]} 29. Bd2 {[%clk 0:01:32.8]}
29... Rxe1 {[%clk 0:01:12.6]} 30. Rxe1 {[%clk 0:01:33.7]} 30... Qb2 {[%clk
0:01:06.7]} 31. Ba5 {[%clk 0:01:12.8]} 31... Qxf2+ {[%clk 0:01:02.1]} 32. Kxf2
{[%clk 0:01:13.7]} 32... Bxf4 {[%clk 0:00:58]} 33. Nxf7 {[%clk 0:01:04.9]} 33...
Kh7 {[%clk 0:00:49.5]} 34. Re8 {[%clk 0:00:49.9]} 34... Ng6 {[%clk 0:00:42.5]}
35. Bc3 {[%clk 0:00:40.3]} 35... Bg3+ {[%clk 0:00:37]} 36. Kf3 {[%clk
0:00:40.7]} 36... Bd3 {[%clk 0:00:36]} 37. Ng5+ {[%clk 0:00:34.6]} 37... Kh6
{[%clk 0:00:35.2]} 38. Bd2 {[%clk 0:00:33.4]} 38... f4 {[%clk 0:00:28.1]} 39.
Be6 {[%clk 0:00:26.9]} 39... Rxd4 {[%clk 0:00:22.6]} 40. Nf7+ {[%clk 0:00:20]}
40... Kh7 {[%clk 0:00:20.6]} 41. Bc3 {[%clk 0:00:17.9]} 41... Be4+ {[%clk
0:00:12.1]} 42. Kg4 {[%clk 0:00:17.2]} 42... Rd3 {[%clk 0:00:11.7]} 43. Ng5+
{[%clk 0:00:17.4]} 43... Kh6 {[%clk 0:00:11.1]} 44. Nxe4 {[%clk 0:00:18.1]}
44... Bf2 {[%clk 0:00:09.6]} 45. Rg8 {[%clk 0:00:16.5]} 45... Rxc3 {[%clk
0:00:08.7]} 46. Nxc3 {[%clk 0:00:13.5]} 46... Bxc5 {[%clk 0:00:08.7]} 47. Bf5
{[%clk 0:00:11.4]} 47... Bd4 {[%clk 0:00:08.4]} 48. Bxg6 {[%clk 0:00:10.7]}
48... Kxg6 {[%clk 0:00:09.1]} 49. Ne2 {[%clk 0:00:09.1]} 49... Be3 {[%clk
0:00:07.7]} 50. Nxf4+ {[%clk 0:00:09.5]} 1-0

[Event "*** Titled Tuesday Blitz"]
[Site "Chess.com"]
[Date "2021.03.16"]
[Round "3"]
[White "youngKID"]
[Black "SilviusTiberius"]
[Result "1-0"]
[WhiteElo "2786"]
[BlackElo "2541"]
[TimeControl "180+1"]
[EndTime "10:28:45 PDT"]
[Termination "youngKID won by resignation"]

1. e4 {[%clk 0:03:00.9]} 1... e5 {[%clk 0:02:57.3]} 2. Nf3 {[%clk 0:03:00.4]}
2... Nc6 {[%clk 0:02:51.2]} 3. Bb5 {[%clk 0:03:00.9]} 3... Nf6 {[%clk
0:02:50.9]} 4. Qe2 {[%clk 0:02:57.2]} 4... Bd6 {[%clk 0:02:50.1]} 5. Bxc6 {[%clk
0:02:49.3]} 5... bxc6 {[%clk 0:02:45.5]} 6. d4 {[%clk 0:02:48.7]} 6... Qe7
{[%clk 0:02:33.4]} 7. dxe5 {[%clk 0:02:46]} 7... Bxe5 {[%clk 0:02:33]} 8. Nxe5
{[%clk 0:02:42.3]} 8... Qxe5 {[%clk 0:02:32.9]} 9. Nc3 {[%clk 0:02:42.9]} 9...
O-O {[%clk 0:02:25.5]} 10. O-O {[%clk 0:02:35]} 10... Re8 {[%clk 0:02:25.3]} 11.
f4 {[%clk 0:02:17]} 11... Qa5 {[%clk 0:02:23.6]} 12. Kh1 {[%clk 0:02:01.5]}
12... Ba6 {[%clk 0:02:20.3]} 13. Qf2 {[%clk 0:00:48.1]} 13... Bxf1 {[%clk
0:02:16.5]} 14. e5 {[%clk 0:00:48.7]} 14... Nd5 {[%clk 0:01:55.7]} 15. Qxf1
{[%clk 0:00:46.1]} 15... Nxc3 {[%clk 0:01:55]} 16. Bd2 {[%clk 0:00:46.6]} 16...
Qb5 {[%clk 0:01:52.5]} 17. Bxc3 {[%clk 0:00:47]} 17... Qxf1+ {[%clk 0:01:52.2]}
18. Rxf1 {[%clk 0:00:47.9]} 18... d6 {[%clk 0:01:49]} 19. Kg1 {[%clk 0:00:46.2]}
19... Rab8 {[%clk 0:01:32.5]} 20. Kf2 {[%clk 0:00:37.1]} 20... dxe5 {[%clk
0:01:26]} 21. fxe5 {[%clk 0:00:38]} 21... Rbd8 {[%clk 0:01:20.5]} 22. Re1 {[%clk
0:00:37.8]} 22... Rd5 {[%clk 0:01:20.5]} 23. Re4 {[%clk 0:00:36.7]} 23... f6
{[%clk 0:01:20]} 24. Ra4 {[%clk 0:00:31.6]} 24... fxe5 {[%clk 0:01:20]} 25. Rxa7
{[%clk 0:00:31.6]} 25... Rd7 {[%clk 0:01:20.3]} 26. Ra5 {[%clk 0:00:30.3]} 26...
e4 {[%clk 0:01:18.6]} 27. Ke3 {[%clk 0:00:24.7]} 27... Rd5 {[%clk 0:01:18.6]}
28. Ra7 {[%clk 0:00:24.1]} 28... Re7 {[%clk 0:01:18.6]} 29. a4 {[%clk 0:00:24]}
29... Rg5 {[%clk 0:01:17.7]} 30. Ra8+ {[%clk 0:00:20.6]} 30... Kf7 {[%clk
0:01:17.2]} 31. a5 {[%clk 0:00:19.9]} 31... Rxg2 {[%clk 0:01:15]} 32. a6 {[%clk
0:00:20.3]} 32... Rg1 {[%clk 0:01:01.5]} 33. b3 {[%clk 0:00:19.8]} 33... Rf1
{[%clk 0:00:44.7]} 34. a7 {[%clk 0:00:19.5]} 34... Rf3+ {[%clk 0:00:45]} 35. Kd4
{[%clk 0:00:20]} 35... e3 {[%clk 0:00:42.6]} 36. Rf8+ {[%clk 0:00:14.6]} 36...
Kxf8 {[%clk 0:00:42.6]} 37. a8=Q+ {[%clk 0:00:15.5]} 37... Kf7 {[%clk
0:00:43.2]} 38. Qxc6 {[%clk 0:00:15.7]} 38... Rf4+ {[%clk 0:00:43.3]} 39. Kd3
{[%clk 0:00:14.3]} 39... e2 {[%clk 0:00:39.1]} 40. Be1 {[%clk 0:00:14.4]} 40...
Rf6 {[%clk 0:00:38.7]} 41. Qc4+ {[%clk 0:00:14]} 41... Ke8 {[%clk 0:00:38.7]}
42. Qg8+ {[%clk 0:00:12.6]} 42... Kd7 {[%clk 0:00:38.4]} 43. Qxh7 {[%clk
0:00:13]} 43... Rd6+ {[%clk 0:00:37.2]} 44. Kc3 {[%clk 0:00:12.9]} 44... Rd1
{[%clk 0:00:37.5]} 45. Qh4 {[%clk 0:00:11.7]} 45... Re6 {[%clk 0:00:36.2]} 46.
Kb2 {[%clk 0:00:11.3]} 46... g5 {[%clk 0:00:34.5]} 47. Qxg5 {[%clk 0:00:07.8]}
47... Kc6 {[%clk 0:00:30.9]} 48. Qg3 {[%clk 0:00:06.2]} 48... Rd5 {[%clk
0:00:30.9]} 49. Qf3 {[%clk 0:00:04.8]} 49... Kd6 {[%clk 0:00:30.3]} 50. Bg3+
{[%clk 0:00:04.4]} 50... Kc5 {[%clk 0:00:30.8]} 51. Bf2+ {[%clk 0:00:03.3]}
51... Kc6 {[%clk 0:00:30.7]} 52. c4 {[%clk 0:00:02.3]} 52... Re4 {[%clk
0:00:24.8]} 53. cxd5+ {[%clk 0:00:03.2]} 53... Kb5 {[%clk 0:00:24.2]} 54. Qxe4
{[%clk 0:00:03.4]} 1-0

[Event "*** Titled Tuesday Blitz"]
[Site "Chess.com"]
[Date "2021.03.16"]
[Round "3"]
[White "Sychev_Klementy"]
[Black "gurelediz"]
[Result "1-0"]
[WhiteElo "2879"]
[BlackElo "2661"]
[TimeControl "180+1"]
[EndTime "10:28:49 PDT"]
[Termination "Sychev_Klementy won by resignation"]

1. e4 {[%clk 0:03:00.9]} 1... c6 {[%clk 0:02:59.4]} 2. d4 {[%clk 0:03:00.2]}
2... d5 {[%clk 0:02:58.8]} 3. e5 {[%clk 0:03:00.7]} 3... Bf5 {[%clk 0:02:56.8]}
4. Nf3 {[%clk 0:03:01.2]} 4... e6 {[%clk 0:02:56.9]} 5. Be2 {[%clk 0:03:01.9]}
5... Nd7 {[%clk 0:02:57.2]} 6. O-O {[%clk 0:03:00.7]} 6... Ne7 {[%clk
0:02:57.9]} 7. Nh4 {[%clk 0:02:58]} 7... c5 {[%clk 0:02:50.5]} 8. c3 {[%clk
0:02:52.5]} 8... Be4 {[%clk 0:02:38.5]} 9. Nd2 {[%clk 0:02:49.8]} 9... Nc6
{[%clk 0:02:37.2]} 10. Nxe4 {[%clk 0:02:48.3]} 10... dxe4 {[%clk 0:02:38.1]} 11.
g3 {[%clk 0:02:42.8]} 11... cxd4 {[%clk 0:02:38.4]} 12. cxd4 {[%clk 0:02:42.8]}
12... Be7 {[%clk 0:02:38.3]} 13. d5 {[%clk 0:02:42.3]} 13... exd5 {[%clk
0:02:24.8]} 14. Nf5 {[%clk 0:02:19.1]} 14... O-O {[%clk 0:02:07.9]} 15. Qxd5
{[%clk 0:02:16.9]} 15... Ndxe5 {[%clk 0:02:07.3]} 16. Qxe4 {[%clk 0:02:15.7]}
16... Bf6 {[%clk 0:02:05]} 17. Be3 {[%clk 0:02:01.3]} 17... Re8 {[%clk
0:01:57.5]} 18. Rfd1 {[%clk 0:01:53.4]} 18... Qc7 {[%clk 0:01:57.1]} 19. Nd6
{[%clk 0:01:42.1]} 19... Re6 {[%clk 0:01:54.3]} 20. Nb5 {[%clk 0:01:37.3]} 20...
Qe7 {[%clk 0:01:52.1]} 21. Nc3 {[%clk 0:01:25.5]} 21... Ng6 {[%clk 0:01:44]} 22.
Qg2 {[%clk 0:01:18.8]} 22... Rxe3 {[%clk 0:01:30.7]} 23. Nd5 {[%clk 0:01:11.7]}
23... Rxe2 {[%clk 0:01:30.3]} 24. Nxe7+ {[%clk 0:01:11.7]} 24... Rxe7 {[%clk
0:01:31.2]} 25. Re1 {[%clk 0:01:02.3]} 25... h6 {[%clk 0:01:24.5]} 26. Rxe7
{[%clk 0:01:00.4]} 26... Ngxe7 {[%clk 0:01:23.4]} 27. Rd1 {[%clk 0:00:58.6]}
27... Rd8 {[%clk 0:01:21.7]} 28. Rxd8+ {[%clk 0:00:57.1]} 28... Nxd8 {[%clk
0:01:22.6]} 29. b4 {[%clk 0:00:56.9]} 29... a6 {[%clk 0:01:16.9]} 30. Qe4 {[%clk
0:00:55.3]} 30... Kf8 {[%clk 0:01:15.7]} 31. a4 {[%clk 0:00:53.6]} 31... Nec6
{[%clk 0:01:09.9]} 32. b5 {[%clk 0:00:52.6]} 32... axb5 {[%clk 0:01:10.8]} 33.
axb5 {[%clk 0:00:52.4]} 33... Nd4 {[%clk 0:01:11.1]} 34. Qd5 {[%clk 0:00:41.3]}
34... Ke7 {[%clk 0:00:59.1]} 35. Kg2 {[%clk 0:00:38.8]} 35... N4e6 {[%clk
0:00:43.1]} 36. f4 {[%clk 0:00:35.6]} 36... b6 {[%clk 0:00:36.2]} 37. h4 {[%clk
0:00:30.5]} 37... Nc7 {[%clk 0:00:28.5]} 38. Qc4 {[%clk 0:00:25.7]} 38... Nde6
{[%clk 0:00:26.1]} 39. Qc6 {[%clk 0:00:24]} 39... Kd8 {[%clk 0:00:14]} 40. Qxb6
{[%clk 0:00:22]} 40... Bd4 {[%clk 0:00:13.9]} 41. Qc6 {[%clk 0:00:21.5]} 41...
Ne8 {[%clk 0:00:12.1]} 42. b6 {[%clk 0:00:16.7]} 42... Bxb6 {[%clk 0:00:07.9]}
43. Qxb6+ {[%clk 0:00:16.6]} 43... Ke7 {[%clk 0:00:08.8]} 44. f5 {[%clk
0:00:16]} 44... N6c7 {[%clk 0:00:07.3]} 45. f6+ {[%clk 0:00:15.9]} 45... gxf6
{[%clk 0:00:06]} 46. Qe3+ {[%clk 0:00:16.1]} 46... Ne6 {[%clk 0:00:06.3]} 47.
Qxh6 {[%clk 0:00:16.2]} 47... Nd6 {[%clk 0:00:07.2]} 48. Qd2 {[%clk 0:00:14.6]}
48... Nf5 {[%clk 0:00:06.8]} 49. Qb4+ {[%clk 0:00:14.2]} 49... Ke8 {[%clk
0:00:06.5]} 50. h5 {[%clk 0:00:14.1]} 50... Nh6 {[%clk 0:00:04.8]} 51. Kg1
{[%clk 0:00:12.9]} 51... Ng5 {[%clk 0:00:02.9]} 52. Qd6 {[%clk 0:00:12.3]} 52...
Ng8 {[%clk 0:00:02.2]} 53. Qb8+ {[%clk 0:00:11.8]} 1-0